bitfinex/quotes_ETHUSD_20240811
["timestamp","ask_amount","ask_price","bid_price","bid_amount"]
[1723384435754,3.20055,2641.0,2640.4,2.65103]
[1723384435915,2.2807,2641.2,2640.6,2.65088]
[1723384436098,2.65031,2641.2,2640.6,2.65085]
[1723384436801,12.23066,2641.6,2641.0,2.65046]
[1723384437125,12.23066,2641.6,2640.6,0.27265875]
[1723384437126,7.3,2641.6,2641.3,2.6502]
[1723384437334,4.93026,2642.0,2641.3,2.65015]
[1723384437625,4.93026,2642.0,2641.4,0.04801229]
[1723384437626,2.64972,2641.8,2641.4,0.04801229]
[1723384437797,2.6499,2641.6,2640.9,2.65058]
[1723384437993,2.2807,2642.0,2641.5,0.04784188]
[1723384438331,2.64939,2642.2,2640.8,2.65064]
[1723384438332,2.65013,2641.4,2640.8,2.65064]
[1723384438531,0.55,2641.3,2640.8,3.58811236]
[1723384438692,0.55,2641.3,2640.9,0.04822496]
[1723384438693,3.20021,2641.3,2640.9,0.04822496]
[1723384439025,0.55,2641.3,2640.9,0.04822496]
[1723384439393,2.65032,2641.2,2640.9,0.04822496]
[1723384439597,5.48115,2641.1,2640.5,2.65095]
[1723384439920,8.944767,2641.1,2641.0,0.04818108]
[1723384440231,8.944767,2641.1,2640.3,2.65114]
[1723384440232,2.65062,2640.9,2640.4,2.6511]
[1723384440615,2.65062,2640.9,2640.3,2.65112]
[1723384440821,3.2800667,2640.9,2640.3,2.65112]
[1723384441030,3.2800667,2640.9,2640.3,5.30228]
[1723384441425,3.2800667,2640.9,2640.3,2.65112]
[1723384441604,2.65081,2640.7,2640.1,2.65135]
[1723384441806,3.2801167,2640.9,2640.3,2.65113]
[1723384442008,3.2801167,2640.9,2640.4,2.65106]
[1723384442834,2.65067,2640.9,2640.4,2.65106]
[1723384444155,2.65066,2640.9,2640.3,2.65116]
[1723384444357,2.65073,2640.8,2640.3,2.65121]
[1723384444507,2.65073,2640.8,2640.0,2.65151]
[1723384444508,2.65096,2640.6,2640.0,2.65151]
[1723384444715,2.2807,2640.7,2639.6,2.65184]
[1723384444716,2.65124,2640.3,2639.6,2.65184]
[1723384444964,2.65124,2640.3,2640.1,0.0475748]
[1723384445245,5.30251,2640.3,2639.7,2.65181]
[1723384445431,2.65124,2640.3,2640.2,0.04425186]
[1723384445638,3.181472,2640.3,2639.7,2.65181]
[1723384445850,3.181472,2640.3,2640.2,0.04285299]
[1723384446062,2.2807,2640.7,2639.6,2.65189]
[1723384446263,4.9316,2640.7,2640.0,2.65144]
[1723384446410,2.65102,2640.5,2640.0,2.65144]
[1723384446610,2.65102,2640.5,2639.8,5.07775]
[1723384446611,3.409282,2640.5,2639.8,5.07772]
[1723384446866,3.20112,2640.4,2640.1,0.04291023]
[1723384447017,3.20112,2640.4,2639.8,2.65162]
[1723384447220,2.65121,2640.3,2640.2,0.04284633]
[1723384447912,2.3452,2641.0,2640.1,2.65136]
[1723384448119,2.3452,2641.0,2639.9,2.4261]
[1723384448120,7.99577,2641.0,2640.3,2.6512]
[1723384448328,2.65062,2640.9,2640.3,5.30235]
[1723384448784,2.65062,2640.9,2640.4,0.04271855]
[1723384449270,2.65078,2640.8,2640.4,0.04271855]
[1723384449473,4.445299,2640.9,2640.4,0.04271855]
[1723384449687,4.445299,2640.9,2640.4,2.65109]
[1723384449841,2.65066,2640.9,2640.4,2.65109]
[1723384450230,7.3,2641.1,2640.6,2.6509]
[1723384450542,2.65056,2641.0,2640.5,2.65101]
[1723384451346,2.65036,2641.2,2640.6,2.65086]
[1723384451541,2.65041,2641.1,2640.6,2.65086]
[1723384451752,2.65041,2641.1,2640.6,2.69345079]
[1723384451940,2.65041,2641.1,2640.6,2.65086]
[1723384452379,2.65055,2641.0,2640.4,2.6511]
[1723384452578,2.65055,2641.0,2640.7,0.04252692]
[1723384452579,0.55,2640.9,2640.7,0.04252692]
[1723384452781,0.55,2640.9,2640.3,2.65121]
[1723384452782,3.20066,2640.9,2640.3,2.65121]
[1723384453102,3.20066,2640.9,2640.8,0.04246305]
[1723384453316,3.20066,2640.9,2640.3,2.65121]
[1723384453596,3.20066,2640.9,2640.4,0.57296355]
[1723384453973,3.20066,2640.9,2640.4,0.04271855]
[1723384453974,5.30202,2640.5,2640.4,0.04271855]
[1723384454183,7.64722,2640.5,2640.4,0.04271855]
[1723384454376,2.65132,2640.2,2639.7,2.65172]
[1723384454565,2.65142,2640.1,2639.6,2.65191]
[1723384454766,4.99628,2640.5,2639.6,3.159661]
[1723384455064,2.65121,2640.3,2639.6,3.159621]
[1723384455764,2.65121,2640.3,2639.7,2.6518]
[1723384455997,2.65121,2640.3,2639.7,2.65178]
[1723384456163,2.65121,2640.3,2639.7,3.2329201]
[1723384456560,4.99628,2640.5,2639.8,2.65163]
[1723384456797,2.65112,2640.4,2639.8,2.65163]
[1723384457001,4.99627,2640.5,2639.9,2.6516]
[1723384457184,2.65113,2640.4,2639.9,2.6516]
[1723384459197,2.65113,2640.4,2639.9,3.24005201]
[1723384459500,7.64737,2640.5,2639.9,3.24001201]
[1723384459716,7.64737,2640.5,2640.0,0.04186269]
[1723384460087,2.65112,2640.4,2640.0,0.04186269]
[1723384461023,5.30232,2640.4,2640.0,0.04186269]
[1723384461314,2.65141,2640.1,2640.0,0.04186269]
[1723384461516,2.3452,2640.5,2640.0,0.04186269]
[1723384461821,2.3452,2639.8,2638.9,2.4261]
[1723384462016,22.42082,2640.7,2639.5,2.65199]
[1723384462017,2.3452,2640.1,2639.5,2.65199]
[1723384462182,2.65156,2640.0,2639.5,2.65199]
[1723384462386,7.3,2640.4,2639.8,2.65169]
[1723384462387,2.65116,2640.4,2639.8,2.65169]
[1723384462583,4.99629,2640.5,2639.9,2.65156]
[1723384463031,4.99629,2640.5,2639.9,2.65154]
[1723384463610,29.72086,2640.7,2640.1,2.65136]
[1723384463819,2.65091,2640.6,2640.0,5.30292]
[1723384464022,4.99596,2640.8,2640.2,2.65125]
[1723384464229,7.64672,2640.8,2640.2,2.65125]
[1723384464440,2.65083,2640.7,2640.1,2.65136]
[1723384464643,4.99596,2640.8,2640.1,2.65136]
[1723384464644,2.65092,2640.6,2640.1,2.65136]
[1723384465141,2.65092,2640.6,2640.1,3.27313737]
[1723384465907,2.65116,2640.4,2640.0,0.7994174]
[1723384466168,2.65116,2640.4,2639.8,2.65171]
[1723384466169,5.30236,2640.4,2639.8,2.65171]
[1723384466641,2.65116,2640.4,2639.8,2.65171]
[1723384466950,2.65098,2640.6,2639.8,2.72739394]
[1723384467107,2.65098,2640.6,2640.0,2.65146]
[1723384467509,2.65112,2640.4,2639.9,0.27273939]
[1723384467731,2.65112,2640.4,2639.8,2.65164]
[1723384467934,2.65112,2640.4,2639.8,5.3033]
[1723384468655,2.65112,2640.4,2639.8,2.65164]
[1723384468834,5.30233,2640.4,2639.8,2.65164]
[1723384469145,2.65132,2640.2,2639.6,4.96474]
[1723384469331,4.99906,2640.3,2639.7,2.6518]
[1723384469707,2.65131,2640.2,2639.7,2.6518]
[1723384471017,2.3478,2640.3,2639.9,2.65161]
[1723384471166,2.6512,2640.4,2639.9,2.65161]
[1723384471765,2.65117,2640.4,2639.9,2.65161]
[1723384471966,5.30234,2640.4,2639.9,2.65161]
[1723384472174,5.30234,2640.4,2639.8,2.65171]
[1723384472375,5.30233,2640.4,2639.8,2.65171]
[1723384472590,5.30232,2640.4,2639.8,2.65171]
[1723384472786,2.65116,2640.4,2639.8,2.65171]
[1723384473180,2.65116,2640.4,2639.9,2.6516]
[1723384473570,2.65121,2640.3,2639.7,5.30348]
[1723384473780,2.65116,2640.4,2639.8,2.6517]
[1723384474178,0.55,2640.5,2639.9,5.3031]
[1723384474481,0.55,2640.5,2639.7,0.830348]
[1723384474482,12.60155,2640.8,2640.2,2.65124]
[1723384474683,9.95076,2640.8,2640.2,2.65124]
[1723384474888,3.0,2641.2,2640.2,2.65124]
[1723384474889,4.99816,2641.2,2640.5,2.651]
[1723384475185,20.08334853,2641.5,2640.8,2.65065]
[1723384475186,2.65017,2641.4,2640.8,2.65065]
[1723384475377,9.95,2641.5,2640.9,2.6506]
[1723384475695,7.3,2641.5,2641.0,2.65045]
[1723384476372,7.3,2641.5,2641.1,0.03953343]
[1723384476575,7.3,2641.5,2641.1,2.68993343]
[1723384476775,7.3,2641.5,2641.1,3.22397177]
[1723384477107,2.64925,2642.3,2641.1,3.22397177]
[1723384477108,12.29711,2642.2,2641.5,2.64999]
[1723384477261,7.3,2642.2,2641.7,2.64978]
[1723384477460,7.3,2642.2,2641.9,2.6496]
[1723384477776,22.41896,2642.6,2642.0,2.64947]
[1723384478105,22.41896,2642.6,2642.1,0.03856666]
[1723384478106,2.971896,2642.5,2642.1,0.03856666]
[1723384478467,2.64902,2642.5,2641.9,2.6496]
[1723384478662,2.64902,2642.5,2641.7,2.64976]
[1723384478663,2.6493,2642.3,2642.2,0.03850286]
[1723384478863,2.6493,2642.3,2641.7,2.64976]
[1723384479077,2.91423,2642.3,2642.2,0.03849623]
[1723384479308,2.91423,2642.3,2641.8,2.64969]
[1723384479309,0.26493,2642.3,2641.8,2.64969]
[1723384479506,2.64911,2642.4,2642.2,0.03841332]
[1723384479808,2.64911,2642.4,2641.7,2.64976]
[1723384480010,2.64938,2642.2,2641.5,4.96283]
[1723384480167,5.29877,2642.2,2641.5,6.061178]
[1723384480362,5.29875,2642.2,2641.5,6.061178]
[1723384480598,2.64936,2642.2,2641.5,6.061168]
[1723384480766,2.64942,2642.1,2641.5,3.411228]
[1723384481406,2.64936,2642.2,2641.5,3.411228]
[1723384481407,2.64936,2642.2,2641.6,2.64988]
[1723384482235,5.29791,2642.6,2641.8,2.6497]
[1723384482370,0.55,2642.5,2642.0,2.64946]
[1723384482707,7.3,2642.7,2642.1,0.07569879]
[1723384482890,5.29714,2643.0,2642.3,2.64913]
[1723384483093,2.64856,2643.0,2642.3,2.64913]
[1723384483291,2.64856,2643.0,2642.4,2.64902]
[1723384483598,2.64856,2643.0,2642.3,5.29825]
[1723384483775,2.64856,2643.0,2642.3,5.83564488]
[1723384484100,2.64856,2643.0,2642.4,2.6491]
[1723384484398,2.64856,2643.0,2642.3,0.53739488]
[1723384484600,2.64896,2642.6,2642.0,0.496236]
[1723384484811,2.64896,2642.6,2642.0,2.64944]
[1723384485100,7.64533,2642.8,2642.1,2.6494]
[1723384485267,3.19886,2642.7,2642.1,2.6494]
[1723384486306,2.64854,2643.0,2642.3,2.64917]
[1723384486475,2.64874,2642.8,2642.2,0.07569445]
[1723384486688,2.64874,2642.8,2642.3,2.6492]
[1723384486878,2.64874,2642.8,2642.1,5.83610445]
[1723384487085,2.64874,2642.8,2642.1,5.83612445]
[1723384487671,2.64874,2642.8,2642.2,2.64929]
[1723384487867,2.64874,2642.8,2642.3,2.64919]
[1723384488073,2.64874,2642.8,2642.3,3.24035612]
[1723384488711,2.64856,2643.0,2642.3,3.24035612]
[1723384488892,5.11811,2643.1,2642.5,2.64894]
[1723384489208,2.64841,2643.1,2642.5,2.64894]
[1723384489382,9.94837,2643.2,2642.6,2.68613229]
[1723384489812,9.94837,2643.2,2642.6,0.03726229]
[1723384489813,2.64841,2643.1,2642.6,0.03726229]
[1723384490012,8.806623,2643.2,2642.1,2.64936]
[1723384490013,2.6488,2642.7,2642.1,2.64936]
[1723384490256,2.6488,2642.7,2642.1,3.441576]
[1723384490564,2.6488,2642.7,2642.2,2.64929]
[1723384490914,7.76701,2642.9,2642.2,2.64929]
[1723384491125,2.64881,2642.7,2642.1,3.441576]
[1723384491331,5.29767,2642.7,2642.1,3.441576]
[1723384491565,2.64881,2642.7,2642.1,0.792226]
[1723384491714,2.64896,2642.6,2642.1,3.441626]
[1723384492242,2.64896,2642.6,2642.1,0.792226]
[1723384492416,2.64911,2642.4,2641.9,4.92241]
[1723384492614,2.64911,2642.4,2641.9,2.64951]
[1723384493118,2.64911,2642.4,2641.7,2.64971]
[1723384493320,5.29796,2642.6,2641.9,2.64954]
[1723384493565,3.19901,2642.5,2641.9,2.64954]
[1723384494738,3.19901,2642.5,2642.0,2.64949]
[1723384494861,3.19901,2642.5,2642.0,3.179409]
[1723384495060,3.19901,2642.5,2642.0,2.64949]
[1723384495661,0.55,2642.5,2642.0,2.64949]
[1723384496271,3.19902,2642.5,2642.0,2.64949]
[1723384496693,0.55,2642.5,2642.0,2.64949]
[1723384496895,0.55,2642.5,2641.9,2.64954]
[1723384497093,3.19906,2642.5,2641.9,2.64954]
[1723384497307,2.64884,2642.7,2642.0,2.64944]
[1723384498891,2.64897,2642.6,2641.9,3.232175]
[1723384499097,2.64903,2642.5,2641.9,2.64953]
[1723384499413,2.64897,2642.6,2641.9,2.64953]
[1723384499414,2.64911,2642.4,2641.9,2.64953]
[1723384499714,2.64911,2642.4,2641.7,0.52729]
[1723384499715,2.64928,2642.3,2641.7,0.52729]
[1723384500020,2.64928,2642.3,2641.8,5.844341]
[1723384500318,2.64872,2642.8,2641.8,5.844341]
[1723384500319,5.29813,2642.5,2641.8,3.194621]
[1723384500614,2.64903,2642.5,2641.9,3.0217811]
[1723384501516,2.64903,2642.5,2641.9,0.3721911]
[1723384501721,1.241842,2642.7,2641.8,0.545001]
[1723384502023,2.64907,2642.5,2642.0,2.6495]
[1723384502187,0.55,2642.6,2642.0,2.6495]
[1723384502393,3.19891,2642.6,2642.0,2.64944]
[1723384502588,2.64908,2642.5,2641.8,3.194631]
[1723384502923,2.64913,2642.4,2641.8,3.194631]
[1723384503426,2.64932,2642.2,2641.8,0.545001]
[1723384503725,2.64917,2642.4,2641.8,0.545001]
[1723384503726,2.64921,2642.3,2641.8,0.545001]
[1723384504023,2.64917,2642.4,2641.9,2.6496]
[1723384504384,2.64917,2642.4,2641.1,2.2729]
[1723384504385,2.4697,2642.3,2641.1,2.2729]
[1723384504591,2.64955,2642.0,2641.3,2.65013]
[1723384504787,2.64955,2642.0,2641.3,3.14625586]
[1723384504985,2.64955,2642.0,2641.5,2.64999]
[1723384505234,2.64955,2642.0,2641.6,0.03797329]
[1723384506124,9.94918,2642.4,2641.9,2.64959]
[1723384506323,5.0035,2642.6,2642.0,2.64942]
[1723384506491,0.55,2642.5,2642.0,2.64942]
[1723384506690,3.19901,2642.5,2642.0,2.64942]
[1723384506990,3.19901,2642.5,2642.1,0.03765421]
[1723384507186,27.07,2642.7,2642.1,0.56016232]
[1723384507391,27.07,2642.7,2642.1,2.72501683]
[1723384507624,27.07,2642.7,2642.2,2.68682041]
[1723384507813,27.07,2642.7,2642.2,0.03759041]
[1723384507814,2.6489,2642.6,2642.2,0.03759041]
[1723384508623,27.07,2642.7,2642.2,0.03759041]
[1723384508822,27.07,2642.7,2642.0,2.64942]
[1723384508823,3.95856332,2642.6,2642.0,2.64942]
[1723384509127,27.07,2642.7,2642.3,2.64911]
[1723384509637,29.71881,2642.7,2642.2,2.383]
[1723384509936,27.07,2642.7,2642.3,2.64919]
[1723384510139,27.07,2642.7,2642.3,2.64915]
[1723384510427,27.07,2642.7,2642.3,2.64914]
[1723384510645,2.64865,2642.9,2642.4,0.03749265]
[1723384510794,4.697384,2642.9,2642.4,0.03749265]
[1723384510994,4.697384,2642.9,2642.3,2.6492]
[1723384511338,5.29733,2642.9,2642.4,0.03749265]
[1723384511544,2.64865,2642.9,2642.4,0.03749265]
[1723384511704,3.95848044,2642.8,2642.2,2.6493]
[1723384511903,5.29812,2642.5,2641.9,2.6496]
[1723384512126,2.64902,2642.5,2642.3,0.03755644]
[1723384512329,5.2981,2642.5,2641.9,2.6496]
[1723384512509,2.64902,2642.5,2642.4,0.03749265]
[1723384512709,3.95879433,2642.5,2641.9,2.72524465]
[1723384513036,2.64893,2642.6,2642.0,2.68727106]
[1723384513242,2.64893,2642.6,2642.1,2.6494]
[1723384513600,2.64893,2642.6,2642.2,0.03768324]
[1723384514104,2.64891,2642.6,2642.2,0.03768324]
[1723384514411,2.64877,2642.8,2642.2,0.03768324]
[1723384514412,2.64876,2642.8,2642.2,2.68694324]
[1723384514627,2.64876,2642.8,2642.2,0.03768324]
[1723384514910,2.64891,2642.6,2642.2,0.03768324]
[1723384515139,2.64907,2642.5,2642.2,0.03768324]
[1723384515454,2.64912,2642.4,2641.9,2.64952]
[1723384515795,2.64912,2642.4,2641.9,5.29907]
[1723384516085,2.64887,2642.7,2641.9,3.50099106]
[1723384516248,2.64887,2642.7,2642.2,2.6493]
[1723384516428,2.64873,2642.8,2642.3,2.64919]
[1723384516741,2.64873,2642.8,2642.4,0.03755565]
[1723384517099,2.64865,2642.9,2642.3,2.64918]
[1723384517300,1.30948374,2642.8,2642.5,0.03749186]
[1723384517529,1.30948374,2642.8,2642.3,5.56959189]
[1723384517530,7.3,2643.2,2642.4,0.03755565]
[1723384517842,7.3,2643.2,2642.3,2.92041189]
[1723384517843,1.30933034,2643.1,2642.5,0.07568732]
[1723384518152,7.3,2643.2,2642.5,0.07568732]
[1723384518316,7.3,2643.2,2642.8,2.64869]
[1723384518651,13.155627,2643.2,2642.7,2.64875]
[1723384520558,2.64841,2643.1,2642.8,0.03723753]
[1723384521043,2.64842,2643.1,2642.5,5.29786]
[1723384521250,2.64842,2643.1,2642.6,2.68626508]
[1723384521456,2.64856,2643.0,2642.6,0.03736508]
[1723384521656,2.6487,2642.8,2642.6,0.03736508]
[1723384521956,2.6487,2642.8,2642.3,2.64911]
[1723384522452,2.64892,2642.6,2642.4,0.03720091]
[1723384522658,2.6488,2642.7,2642.4,0.03720091]
[1723384522862,2.6488,2642.7,2642.1,2.64932]
[1723384523151,2.6488,2642.7,2642.5,0.0371769]
[1723384523320,2.6489,2642.6,2642.1,3.79508265]
[1723384523520,2.6489,2642.6,2642.1,2.64932]
[1723384523762,2.6489,2642.6,2641.9,2.64954]
[1723384523763,2.64905,2642.5,2641.9,2.64954]
[1723384523975,5.55314,2643.0,2641.9,2.64954]
[1723384523976,2.64889,2642.7,2642.1,2.64938]
[1723384524178,2.64889,2642.7,2641.9,5.29908]
[1723384524351,2.64921,2642.3,2641.8,2.6497]
[1723384524752,5.29813,2642.5,2641.9,2.64955]
[1723384524994,2.64906,2642.5,2641.9,2.64955]
[1723384525296,2.64906,2642.5,2641.9,5.2991]
[1723384525461,2.64906,2642.5,2641.8,2.64969]
[1723384525462,3.908852,2642.5,2641.8,2.64969]
[1723384525662,1.259792,2642.5,2641.7,2.383]
[1723384525869,1.259792,2642.5,2641.3,2.287]
[1723384525870,2.64967,2641.9,2641.3,2.287]
[1723384526082,2.64967,2641.9,2641.3,4.93718]
[1723384526263,2.64944,2642.1,2641.5,2.64997]
[1723384526264,2.64951,2642.0,2641.5,2.64997]
[1723384526464,2.64938,2642.2,2641.4,2.65002]
[1723384526675,4.696675,2642.2,2641.6,2.64988]
[1723384527491,4.696675,2642.2,2641.4,2.65002]
[1723384527492,2.64946,2642.1,2641.4,5.30003]
[1723384527798,2.64946,2642.1,2641.5,2.64998]
[1723384527982,2.64946,2642.1,2641.6,2.6499]
[1723384528331,5.29878,2642.2,2641.6,2.6499]
[1723384528518,2.64938,2642.2,2641.6,2.64985]
[1723384529023,2.64936,2642.2,2641.6,2.64985]
[1723384529184,5.29873,2642.2,2641.6,2.64985]
[1723384529595,2.64936,2642.2,2641.6,2.64985]
[1723384530193,2.64961,2641.9,2641.4,2.65003]
[1723384530416,2.64972,2641.8,2641.3,2.287]
[1723384530585,2.64972,2641.8,2641.3,7.93718]
[1723384530912,2.64972,2641.8,2641.3,8.730898]
[1723384531147,2.64958,2642.0,2641.3,8.730898]
[1723384531423,2.64958,2642.0,2641.3,3.443898]
[1723384531585,2.64979,2641.8,2641.2,2.6503]
[1723384531783,5.02409,2641.8,2641.2,2.6503]
[1723384532135,5.02342,2642.4,2641.9,2.64959]
[1723384532433,2.64906,2642.5,2641.9,2.64959]
[1723384532732,2.64906,2642.5,2641.8,0.0756981]
[1723384532882,2.64914,2642.4,2641.8,0.0756981]
[1723384533083,2.64926,2642.3,2641.8,0.0756981]
[1723384533318,2.64926,2642.3,2641.9,0.03682651]
[1723384535014,5.2983,2642.4,2641.9,0.03682651]
[1723384535829,2.64922,2642.3,2641.9,0.03682651]
[1723384536242,2.64936,2642.2,2641.9,0.03682651]
[1723384536747,2.64936,2642.2,2642.0,0.0367627]
[1723384537035,2.64936,2642.2,2641.7,5.430426]
[1723384537391,2.64936,2642.2,2641.8,0.03689032]
[1723384537592,2.64936,2642.2,2641.7,2.287]
[1723384537896,2.64938,2642.2,2641.8,0.03689032]
[1723384538095,3.179234,2642.2,2641.8,0.03689032]
[1723384538326,3.179234,2642.2,2641.6,5.2997]
[1723384538497,2.64938,2642.2,2641.9,0.03682651]
[1723384538692,2.64954,2642.0,2641.5,2.287]
[1723384538935,2.64954,2642.0,2641.5,4.93699]
[1723384539435,5.02367,2642.2,2641.6,2.64987]
[1723384539641,2.64947,2642.1,2641.5,4.93693]
[1723384539945,2.64953,2642.0,2641.5,7.58688]
[1723384540142,2.64953,2642.0,2641.5,4.93693]
[1723384540653,0.8175527,2642.0,2641.2,2.287]
[1723384540854,2.64987,2641.7,2641.1,2.65032]
[1723384541148,2.64987,2641.7,2641.1,5.30067]
[1723384541304,2.64987,2641.7,2641.1,2.65032]
[1723384541503,2.64991,2641.6,2641.1,2.6504]
[1723384541951,2.64991,2641.6,2641.1,2.65035]
[1723384543081,2.64991,2641.6,2641.0,2.65041]
[1723384543240,2.64991,2641.6,2641.1,2.65037]
[1723384543426,2.64991,2641.6,2641.0,2.65041]
[1723384545467,2.64991,2641.6,2641.0,5.30086]
[1723384545637,2.64991,2641.6,2641.0,2.65041]
[1723384545838,5.29987,2641.6,2641.0,2.65041]
[1723384546025,2.64991,2641.6,2641.0,2.65041]
[1723384546286,0.767398,2641.6,2640.5,2.287]
[1723384546591,4.92432,2641.2,2640.5,2.4038]
[1723384546741,4.92432,2641.2,2640.6,2.65085]
[1723384546936,4.92432,2641.2,2640.6,5.3017]
[1723384547141,2.274,2641.2,2640.6,2.65085]
[1723384547341,2.274,2641.2,2640.8,2.65065]
[1723384547562,2.65026,2641.3,2640.7,2.65081]
[1723384547784,4.92402,2641.5,2640.8,3.2313815]
[1723384548059,4.92402,2641.5,2640.9,0.07572253]
[1723384548469,2.65012,2641.4,2640.9,0.07572253]
[1723384548863,2.65012,2641.4,2640.8,3.2313215]
[1723384549745,4.92402,2641.5,2640.9,0.04431431]
[1723384549746,2.65026,2641.3,2640.9,0.04431431]
[1723384549943,5.30056,2641.3,2640.9,0.04431431]
[1723384550160,2.65032,2641.2,2640.6,5.807145]
[1723384550356,2.65032,2641.2,2641.0,0.04423449]
[1723384550538,2.65053,2641.0,2640.5,2.65095]
[1723384551131,2.65053,2641.0,2640.4,2.65105]
[1723384551961,2.65062,2640.9,2640.4,2.65105]
[1723384552163,4.92453,2641.0,2640.2,2.65124]
[1723384552381,2.65078,2640.8,2640.1,2.65136]
[1723384553030,2.65091,2640.6,2640.1,2.65136]
[1723384553854,2.65081,2640.7,2640.2,2.65129]
[1723384554573,1.042453,2640.9,2640.2,2.65129]
[1723384554774,2.65072,2640.8,2640.3,2.6512]
[1723384555080,2.65072,2640.8,2640.2,2.916419]
[1723384555280,5.30152,2640.8,2640.2,2.916419]
[1723384555774,2.65085,2640.7,2640.2,2.916419]
[1723384555974,2.65091,2640.6,2640.2,0.265129]
[1723384556180,2.65091,2640.6,2640.1,2.65139]
[1723384556382,2.65091,2640.6,2639.9,2.65151]
[1723384556383,2.65101,2640.5,2639.9,2.65151]
[1723384556539,2.65101,2640.5,2640.0,3.0]
[1723384556878,2.65101,2640.5,2640.0,2.65148]
[1723384558140,5.455202,2640.5,2640.0,2.65148]
[1723384558473,2.65113,2640.4,2639.9,2.6516]
[1723384558659,2.65113,2640.4,2639.7,5.3035]
[1723384558981,2.65113,2640.4,2639.7,2.65174]
[1723384558982,2.65133,2640.2,2639.7,2.65174]
[1723384559184,5.30269,2640.2,2639.7,2.65174]
[1723384559339,2.65133,2640.2,2639.7,2.65174]
[1723384560665,2.65133,2640.2,2639.7,5.3035]
[1723384560976,2.65133,2640.2,2639.7,6.07423]
[1723384561227,2.65133,2640.2,2639.7,3.42247]
[1723384563068,2.65133,2640.2,2639.7,2.65174]
[1723384563651,2.65133,2640.2,2639.6,2.65184]
[1723384563847,2.65133,2640.2,2639.7,2.65181]
[1723384564177,2.65133,2640.2,2639.6,2.6519]
[1723384564352,2.65137,2640.2,2639.7,2.65181]
[1723384564754,2.65137,2640.2,2639.8,0.03897491]
[1723384565051,2.65142,2640.1,2639.9,0.03890643]
[1723384565268,2.65142,2640.1,2639.5,2.65192]
[1723384565568,2.274,2640.0,2639.6,0.03911188]
[1723384565760,2.65166,2639.9,2639.6,0.03911188]
[1723384566074,2.65166,2639.9,2639.4,2.65211]
[1723384566299,2.65171,2639.8,2639.7,0.03663973]
[1723384566448,2.65171,2639.8,2639.3,2.65221]
[1723384566649,2.65166,2639.9,2639.4,0.03683151]
[1723384566850,5.30334,2639.9,2639.4,0.03683151]
[1723384567063,2.65166,2639.9,2639.4,0.03683151]
[1723384567270,2.65176,2639.8,2639.4,0.03683151]
[1723384568147,2.6519,2639.7,2639.4,0.03683151]
[1723384568347,2.65187,2639.7,2639.1,2.65234]
[1723384568567,2.65187,2639.7,2639.5,0.03676758]
[1723384568791,3.2579974,2639.7,2639.1,5.3047]
[1723384568974,5.30376,2639.7,2639.6,0.03670365]
[1723384569184,5.30375,2639.7,2639.1,2.65234]
[1723384569562,5.30375,2639.7,2639.2,0.03695939]
[1723384569763,2.65192,2639.6,2639.2,0.03695939]
[1723384570326,2.65187,2639.7,2639.2,0.03695939]
[1723384570886,3.409414,2639.9,2639.2,0.30588933]
[1723384570887,0.757734,2639.9,2639.2,0.30588933]
[1723384571096,2.274,2640.0,2639.2,0.30588933]
[1723384571097,2.65176,2639.8,2639.3,2.65216]
[1723384571397,2.65187,2639.7,2639.3,0.03689545]
[1723384571780,2.65187,2639.7,2639.1,2.65234]
[1723384571988,2.65187,2639.7,2639.4,0.03683151]
[1723384572164,2.65187,2639.7,2639.2,2.6523]
[1723384572364,2.65187,2639.7,2639.5,0.03676758]
[1723384572602,2.65132,2640.2,2638.7,5.0828197]
[1723384572603,2.9931472,2640.3,2639.6,2.65185]
[1723384572766,3.0,2640.5,2639.6,2.65185]
[1723384572767,2.65118,2640.4,2639.9,2.65161]
[1723384573102,5.30235,2640.4,2640.0,0.03705907]
[1723384573266,5.09855,2640.6,2639.8,2.72741556]
[1723384573465,2.65112,2640.4,2639.9,0.03712297]
[1723384573704,5.3023,2640.4,2639.9,0.03712297]
[1723384574006,2.65112,2640.4,2639.9,0.03712297]
[1723384574204,2.65112,2640.4,2639.9,2.68868297]
[1723384574587,2.4476,2640.6,2640.0,0.07575173]
[1723384574963,2.4476,2640.6,2640.2,2.65129]
[1723384575162,3.0,2641.0,2640.3,2.65121]
[1723384575163,5.09821,2640.9,2640.3,2.65121]
[1723384575363,2.65076,2640.8,2640.3,0.03686737]
[1723384575563,2.65076,2640.8,2640.2,2.65129]
[1723384575564,2.65076,2640.8,2640.2,5.37828425]
[1723384575802,5.30153,2640.8,2640.4,0.03662738]
[1723384576104,5.30153,2640.8,2640.5,0.0365635]
[1723384576105,3.455651,2640.8,2640.5,0.0365635]
[1723384576516,3.455651,2640.8,2640.2,7.67975425]
[1723384576675,2.65076,2640.8,2640.6,0.03645645]
[1723384576871,2.65081,2640.7,2640.6,0.03645645]
[1723384577120,2.65081,2640.7,2640.2,2.37724416]
[1723384577323,2.65081,2640.7,2640.6,0.03645645]
[1723384577613,2.65081,2640.7,2640.0,2.65144]
[1723384577614,2.65101,2640.5,2640.0,2.65144]
[1723384577827,2.65117,2640.4,2639.9,2.3015]
[1723384578301,2.65105,2640.5,2639.9,4.95302]
[1723384578682,2.65116,2640.4,2639.9,2.3015]
[1723384579718,3.16087,2640.5,2639.9,4.95306]
[1723384579876,3.16087,2640.5,2640.0,0.03683979]
[1723384580383,2.65116,2640.4,2640.0,0.03683979]
[1723384581879,2.65064,2640.9,2640.0,0.03683979]
[1723384581880,5.09736,2641.8,2641.2,2.65026]